fUSD/lending_fUSD_20250127
["ID","MTS","AMOUNT","RATE_DAILY","PERIOD"]
[350555888,1737961832423,-150.0,0.00010799,2]
[350555889,1737961832432,-300.0,0.00010799,2]
[350555890,1737961832441,-249.54,0.000108,2]
[350555891,1737961832451,-5475.35144536,0.000108,2]
[350555892,1737961832462,-1169.12617762,0.000108,2]
[350555900,1737961832816,-286.429997,0.000108,2]
[350555902,1737961832831,-6733.51989261,0.000108,2]
[350555905,1737961832850,-1498.78949728,0.000108,2]
[350555907,1737961832861,-1182.71091713,0.000108,2]
[350555910,1737961832873,-254.37134798,0.000108,2]
[350556194,1737961838168,-2510.40485147,0.000108,2]
[350556198,1737961838253,-46432.52284409,0.000108,2]
[350556199,1737961838263,-245.96,0.00010819,2]
[350556200,1737961838273,-586.22684525,0.00010827,2]
[350556201,1737961838283,-23900.0,0.00010831,2]
[350556202,1737961838292,-152.54054012,0.00010872,2]
[350556203,1737961838302,-250.0,0.00010898,2]
[350556204,1737961838312,-7479.62,0.00010898,2]
[350556205,1737961838321,-479.97,0.00010898,2]
[350556206,1737961838332,-150.99,0.00010898,2]
[350556207,1737961838342,-299.99,0.00010898,2]
[350556208,1737961838352,-150.99,0.00010898,2]
[350556209,1737961838361,-8534.66929475,0.00010898,2]
[350556210,1737961838373,-3876.107376,0.00010898,2]
[350556211,1737961838384,-743.21106,0.00010898,2]
[350556212,1737961838395,-4180.84226925,0.00010898,2]
[350556213,1737961838405,-1519.21,0.00010898,2]
[350556214,1737961838415,-327.13,0.0001094,2]
[350556215,1737961838423,-500.0,0.00010972,2]
[350556216,1737961838433,-1300.0,0.00010972,2]
[350556217,1737961838443,-1266.84,0.00011136,2]
[350556218,1737961838452,-150.0,0.00011251,2]
[350556219,1737961838462,-2385.58,0.00011251,2]
[350556220,1737961838472,-400.0,0.000115,4]
[350556221,1737961838482,-6450.27280218,0.000116,2]
[350556222,1737961838492,-800.0,0.000116,4]
[350556223,1737961838502,-416.60744904,0.00011631,2]
[350556224,1737961838511,-1200.0,0.000117,4]
[350556225,1737961838522,-166.002351,0.0001176,2]
[350556226,1737961838532,-200.537,0.00011768,2]
[350556227,1737961838543,-154.581,0.00011768,2]
[350556228,1737961838553,-1273.741,0.00011768,2]
[350556229,1737961838564,-357.999,0.00011768,2]
[350556230,1737961838575,-681.195,0.00011768,2]
[350556231,1737961838589,-3280.4118,0.0001178,2]
[350556232,1737961838599,-583.35,0.0001178,2]
[350556233,1737961838610,-1028.1271,0.0001178,2]
[350556234,1737961838622,-1600.0,0.000118,4]
[350556235,1737961838633,-1000.0,0.000118,2]
[350556236,1737961838644,-1925.56410673,0.00011826,2]
[350556237,1737961838654,-4229.38117374,0.00011831,2]
[350556238,1737961838665,-207.76378357,0.00011831,2]
[350556239,1737961838675,-1993.77591941,0.00011833,2]
[350556240,1737961838685,-207.76378357,0.00011835,2]
[350556241,1737961838696,-255.0,0.00011836,2]
[350556242,1737961838706,-200.0,0.00011845,2]
[350556243,1737961838716,-4229.38117374,0.00011852,2]
[350556244,1737961838726,-1925.56410673,0.00011855,2]
[350556245,1737961838735,-207.76378357,0.00011855,2]
[350556246,1737961838745,-2895.61539746,0.00011856,2]
[350556247,1737961838764,-548.35263034,0.00011856,2]
[350556248,1737961838780,-785.41314594,0.00011856,2]
[350556249,1737961838790,-1812.20185766,0.00011857,2]
[350556250,1737961838802,-181.57406175,0.00011857,2]
[350556251,1737961838813,-808.42593825,0.00011863,2]
[350556252,1737961838826,-426.97406175,0.00011863,2]
[350556253,1737961838839,-4229.38117374,0.00011864,2]
[350556254,1737961838850,-207.76378357,0.00011865,2]
[350556255,1737961838860,-420.0,0.00011869,2]
[350556256,1737961838869,-1235.4,0.00011871,2]
[350556257,1737961838879,-1925.56410673,0.00011873,2]
[350556258,1737961838888,-1235.4,0.00011873,2]
[350556259,1737961838898,-1993.77591941,0.00011873,2]
[350556260,1737961838908,-200.0,0.00011877,2]
[350556261,1737961838918,-200.0,0.00011879,2]
[350556262,1737961838928,-9881.0,0.00011879,2]
[350556263,1737961838938,-500.0,0.00011879,2]
[350556264,1737961838948,-500.0,0.00011879,2]
[350556265,1737961838957,-500.0,0.00011879,2]
[350556266,1737961838967,-500.0,0.00011879,2]
[350556267,1737961838976,-500.0,0.00011879,2]
[350556268,1737961838986,-500.0,0.00011879,2]
[350556269,1737961838995,-500.0,0.00011879,2]
[350556270,1737961839004,-500.0,0.00011879,2]
[350556271,1737961839014,-500.0,0.00011879,2]
[350556272,1737961839023,-500.0,0.00011879,2]
[350556273,1737961839031,-500.0,0.00011879,2]
[350556274,1737961839041,-500.0,0.00011879,2]
[350556275,1737961839050,-500.0,0.00011879,2]
[350556276,1737961839060,-500.0,0.00011879,2]
[350556277,1737961839069,-500.0,0.00011879,2]
[350556278,1737961839079,-500.0,0.00011879,2]
[350556279,1737961839089,-500.0,0.00011879,2]
[350556280,1737961839100,-500.0,0.00011879,2]
[350556281,1737961839110,-500.0,0.00011879,2]
[350556282,1737961839119,-500.0,0.00011879,2]
[350556283,1737961839129,-500.0,0.00011879,2]
[350556284,1737961839138,-500.0,0.00011879,2]
[350556285,1737961839148,-500.0,0.00011879,2]
[350556286,1737961839157,-500.0,0.00011879,2]
[350556287,1737961839166,-500.0,0.00011879,2]
[350556288,1737961839175,-500.0,0.00011879,2]
[350556289,1737961839185,-500.0,0.00011879,2]
[350556290,1737961839194,-2361.70479,0.0001188,2]
[350556291,1737961839203,-207.76378357,0.00011881,2]
[350556292,1737961839212,-1235.4,0.00011881,2]
[350556293,1737961839222,-200.0,0.00011886,2]
[350556295,1737961839231,-4229.38117374,0.00011888,2]
[350556296,1737961839240,-200.0,0.00011891,2]
[350556298,1737961839249,-1235.4,0.00011893,2]
[350556300,1737961839260,-1925.56410673,0.00011894,2]
[350556302,1737961839270,-2351.411,0.00011895,2]
[350556304,1737961839279,-162.769,0.00011895,2]
[350556307,1737961839289,-1769.5878,0.00011897,2]
[350556308,1737961839299,-344.46797554,0.00011898,2]
[350556310,1737961839308,-1993.77591941,0.00011899,2]
[350556313,1737961839319,-10275.2237,0.00011899,2]
[350556314,1737961839328,-1112.6898,0.00011899,2]
[350556316,1737961839339,-249.87366587,0.000119,2]
[350556318,1737961839348,-160.00397156,0.000119,2]
[350556320,1737961839358,-163.55071226,0.000119,2]
[350556322,1737961839368,-2100.0,0.000119,4]
[350556324,1737961839377,-1993.77591941,0.00011904,2]
[350556327,1737961839386,-200.0,0.0001191,2]
[350556329,1737961839396,-200.0,0.00011917,2]
[350556331,1737961839405,-200.0,0.00011917,2]
[350556333,1737961839415,-1925.56410673,0.00011918,2]
[350556335,1737961839424,-500.9666502,0.00011973,2]
[350556337,1737961839433,-500.0,0.00011973,2]
[350556339,1737961839443,-500.0,0.00011973,2]
[350556341,1737961839452,-828.0451282,0.00011989,2]
[350556343,1737961839462,-441.5029267,0.00011989,2]
[350556345,1737961839471,-784.9429879,0.00011992,2]
[350556347,1737961839480,-418.5214243,0.00011992,2]
[350556349,1737961839490,-500.0,0.00011996,2]
[350556351,1737961839499,-500.0,0.00011996,2]
[350556353,1737961839509,-500.0,0.00011996,2]
[350556355,1737961839518,-500.0,0.00011996,2]
[350556357,1737961839531,-500.0,0.00011996,2]
[350556359,1737961839542,-859.49,0.00011996,2]
[350556361,1737961839552,-500.0,0.00011996,2]
[350556362,1737961839561,-500.0,0.00011996,2]
[350556365,1737961839571,-866.33,0.00011996,2]
[350556366,1737961839582,-585.63,0.00011996,2]
[350556368,1737961839591,-500.0,0.00011996,2]
[350556370,1737961839601,-655.74,0.00011996,2]
[350556372,1737961839610,-500.0,0.00011996,2]
[350556374,1737961839622,-698.29,0.00011996,2]
[350556376,1737961839631,-500.0,0.00011996,2]
[350556378,1737961839641,-1074.83,0.00011996,2]
[350556380,1737961839650,-500.0,0.00011996,2]
[350556382,1737961839660,-500.0,0.00011996,2]
[350556384,1737961839669,-500.0,0.00011996,2]
[350556386,1737961839679,-500.0,0.00011996,2]
[350556388,1737961839688,-500.0,0.00011996,2]
[350556390,1737961839698,-500.0,0.00011996,2]
[350556392,1737961839709,-500.0,0.00011996,2]
[350556394,1737961839718,-520.22,0.00011996,2]
[350556396,1737961839728,-500.0,0.00011996,2]
[350556398,1737961839738,-500.0,0.00011996,2]
[350556400,1737961839747,-500.0,0.00011996,2]
[350556402,1737961839758,-500.0,0.00011996,2]
[350556404,1737961839768,-500.0,0.00011996,2]
[350556406,1737961839777,-500.0,0.00011996,2]
[350556408,1737961839787,-394.65257014,0.00011996,2]
[350556410,1737961839796,-182.41,0.00011996,2]
[350556412,1737961839805,-500.0,0.00011996,2]
[350556414,1737961839815,-500.0,0.00011996,2]
[350556416,1737961839824,-500.0,0.00011996,2]
[350556418,1737961839836,-500.0,0.00011996,2]
[350556420,1737961839846,-216.87670842,0.00011996,2]
[350556422,1737961839855,-500.0,0.00011996,2]
[350556424,1737961839864,-500.0,0.00011996,2]
[350556426,1737961839874,-500.0,0.00011997,7]
[350556428,1737961839883,-401.12204773,0.00011997,2]
[350556430,1737961839892,-500.0,0.00011997,2]
[350556432,1737961839901,-500.0,0.00011997,2]
[350556434,1737961839910,-500.0,0.00011997,2]
[350556436,1737961839920,-500.0,0.00011997,2]
[350556438,1737961839929,-500.0,0.00011997,2]
[350556439,1737961839938,-518.36542192,0.00011997,2]
[350556441,1737961839947,-500.0,0.00011997,2]
[350556443,1737961839956,-500.0,0.00011997,2]
[350556445,1737961839965,-500.0,0.00011997,2]
[350556447,1737961839974,-500.0,0.00011997,2]
[350556449,1737961839983,-500.0,0.00011997,2]
[350556451,1737961839992,-500.0,0.00011997,2]
[350556453,1737961840001,-500.0,0.00011997,2]
[350556455,1737961840010,-503.47558965,0.00011997,2]
[350556457,1737961840020,-506.49982391,0.00011997,2]
[350556460,1737961840029,-500.0,0.00011997,2]
[350556462,1737961840039,-500.0,0.00011997,2]
[350556464,1737961840048,-500.0,0.00011997,2]
[350556466,1737961840057,-511.701401,0.00011997,2]
[350556468,1737961840067,-508.03683817,0.00011997,2]
[350556470,1737961840076,-500.0,0.00011997,2]
[350556472,1737961840087,-500.0,0.00011997,2]
[350556474,1737961840096,-500.0,0.00011997,2]
[350556476,1737961840106,-500.0,0.00011997,2]
[350556478,1737961840115,-338.93211426,0.00011997,2]
[350556480,1737961840124,-500.0,0.00011997,2]
[350556482,1737961840134,-500.0,0.00011997,2]
[350556484,1737961840143,-500.0,0.00011997,2]
[350556486,1737961840152,-500.0,0.00011997,2]
[350556488,1737961840162,-500.0,0.00011997,2]
[350556490,1737961840171,-510.45866329,0.00011997,2]
[350556492,1737961840180,-500.0,0.00011997,2]
[350556494,1737961840190,-500.0,0.00011997,2]
[350556496,1737961840199,-500.0,0.00011997,2]
[350556498,1737961840208,-500.0,0.00011997,2]
[350556500,1737961840218,-500.0,0.00011997,2]
[350556502,1737961840227,-500.0,0.00011997,2]
[350556504,1737961840236,-500.0,0.00011997,2]
[350556506,1737961840246,-500.0,0.00011997,2]
[350556508,1737961840256,-500.0,0.00011997,2]
[350556510,1737961840266,-500.0,0.00011997,2]
[350556512,1737961840276,-500.0,0.00011997,2]
[350556514,1737961840285,-500.0,0.00011997,2]
[350556516,1737961840294,-500.0,0.00011997,2]
[350556518,1737961840303,-500.0,0.00011997,2]
[350556521,1737961840313,-500.0,0.00011997,2]
[350556524,1737961840322,-500.0,0.00011997,2]
[350556527,1737961840334,-506.16123979,0.00011997,2]
[350556529,1737961840344,-533.0630456,0.00011997,2]
[350556531,1737961840353,-500.0,0.00011997,2]
[350556533,1737961840362,-500.0,0.00011997,2]
[350556535,1737961840372,-500.0,0.00011997,2]
[350556537,1737961840381,-500.0,0.00011997,2]
[350556539,1737961840390,-500.0,0.00011997,2]
[350556540,1737961840399,-500.0,0.00011997,2]
[350556543,1737961840409,-361.08921103,0.00011997,2]
[350556544,1737961840419,-500.0,0.00011997,2]
[350556546,1737961840428,-564.92823637,0.00011997,2]
[350556548,1737961840438,-500.0,0.00011997,2]
[350556550,1737961840447,-500.0,0.00011997,2]
[350556552,1737961840457,-566.54670418,0.00011997,2]
[350556554,1737961840466,-500.0,0.00011997,2]
[350556556,1737961840475,-500.0,0.00011997,2]
[350556557,1737961840484,-500.0,0.00011997,2]
[350556558,1737961840493,-500.0,0.00011997,2]
[350556559,1737961840502,-500.0,0.00011997,2]
[350556560,1737961840511,-500.0,0.00011997,2]
[350556561,1737961840520,-605.96,0.00011997,2]
[350556562,1737961840534,-500.0,0.00011997,2]
[350556563,1737961840543,-500.0,0.00011997,2]
[350556564,1737961840552,-500.0,0.00011997,2]
[350556565,1737961840561,-500.0,0.00011997,2]
[350556567,1737961840573,-309.91716349,0.00011997,2]
[350556569,1737961840583,-500.0,0.00011997,2]
[350556571,1737961840592,-500.0,0.00011997,2]
[350556573,1737961840602,-500.0,0.00011997,2]
[350556575,1737961840611,-500.0,0.00011997,2]
[350556577,1737961840621,-500.0,0.00011997,2]
[350556578,1737961840630,-500.0,0.00011997,2]
[350556580,1737961840639,-500.0,0.00011997,2]
[350556582,1737961840647,-500.0,0.00011997,2]
[350556584,1737961840657,-606.92158185,0.00011997,2]
[350556586,1737961840666,-500.0,0.00011997,2]
[350556588,1737961840676,-500.0,0.00011997,2]
[350556590,1737961840686,-500.0,0.00011997,2]
[350556592,1737961840696,-337.07176363,0.00011997,2]
[350556594,1737961840706,-500.0,0.00011997,2]
[350556596,1737961840715,-500.0,0.00011997,2]
[350556598,1737961840725,-500.0,0.00011997,2]
[350556600,1737961840734,-540.58622942,0.00011997,2]
[350556602,1737961840743,-500.0,0.00011997,2]
[350556604,1737961840752,-500.0,0.00011997,2]
[350556606,1737961840762,-500.0,0.00011997,2]
[350556608,1737961840771,-154.72751,0.00011997,2]
[350556610,1737961840780,-500.0,0.00011997,2]
[350556612,1737961840789,-500.0,0.00011997,2]
[350556614,1737961840798,-529.03773733,0.00011997,2]
[350556616,1737961840808,-156.805588,0.00011997,2]
[350556618,1737961840817,-500.0,0.00011997,2]
[350556620,1737961840826,-500.0,0.00011997,2]
[350556622,1737961840836,-500.0,0.00011997,2]
[350556624,1737961840845,-500.0,0.00011997,2]
[350556626,1737961840855,-565.74,0.00011997,2]
[350556628,1737961840865,-500.0,0.00011997,2]
[350556630,1737961840874,-500.0,0.00011997,2]
[350556632,1737961840884,-500.0,0.00011997,2]
[350556634,1737961840893,-420.92748704,0.00011997,2]
[350556636,1737961840902,-500.0,0.00011997,2]
[350556638,1737961840912,-583.17452956,0.00011997,2]
[350556640,1737961840922,-500.0,0.00011997,2]
[350556642,1737961840932,-314.36561276,0.00011997,2]
[350556644,1737961840942,-500.0,0.00011997,2]
[350556646,1737961840952,-500.0,0.00011997,2]
[350556648,1737961840961,-246.25538566,0.00011997,2]
[350556650,1737961840970,-500.0,0.00011997,2]
[350556653,1737961840981,-500.0,0.00011997,2]
[350556655,1737961840990,-500.0,0.00011997,2]
[350556656,1737961841000,-500.0,0.00011997,2]
[350556658,1737961841009,-500.0,0.00011997,2]
[350556660,1737961841018,-500.0,0.00011997,2]
[350556662,1737961841028,-500.0,0.00011997,2]
[350556664,1737961841038,-500.0,0.00011997,2]
[350556666,1737961841047,-500.0,0.00011997,2]
[350556668,1737961841056,-500.0,0.00011997,2]
[350556670,1737961841066,-500.0,0.00011997,2]
[350556672,1737961841076,-500.0,0.00011997,2]
[350556674,1737961841088,-500.0,0.00011997,2]
[350556676,1737961841098,-500.0,0.00011997,2]
[350556678,1737961841108,-500.0,0.00011997,2]
[350556680,1737961841117,-500.0,0.00011997,2]
[350556682,1737961841128,-500.0,0.00011997,2]
[350556684,1737961841137,-500.0,0.00011997,2]
[350556686,1737961841146,-500.0,0.00011997,2]
[350556688,1737961841155,-500.0,0.00011997,2]
[350556690,1737961841165,-500.0,0.00011997,2]
[350556692,1737961841174,-500.0,0.00011997,2]
[350556694,1737961841183,-500.0,0.00011997,2]
[350556696,1737961841193,-500.0,0.00011997,2]
[350556698,1737961841202,-500.0,0.00011997,2]
[350556700,1737961841211,-289.04868745,0.00011997,2]
[350556702,1737961841220,-614.33997539,0.00011997,2]
[350556704,1737961841230,-37961.64651953,0.00011998,2]
[350556706,1737961841240,-500.0,0.00011998,2]
[350556708,1737961841250,-500.0,0.00011998,2]
[350556710,1737961841259,-500.0,0.00011998,2]
[350556712,1737961841268,-500.0,0.00011998,2]
[350556714,1737961841278,-500.0,0.00011998,2]
[350556716,1737961841287,-500.0,0.00011998,2]
[350556718,1737961841296,-500.0,0.00011998,2]
[350556720,1737961841305,-500.0,0.00011998,2]
[350556722,1737961841315,-243.65772549,0.00011998,2]
[350556724,1737961841325,-500.0,0.00011998,2]
[350556726,1737961841336,-500.0,0.00011998,2]
[350556728,1737961841345,-500.0,0.00011998,2]
[350556730,1737961841355,-500.0,0.00011998,2]
[350556732,1737961841364,-544.85039398,0.00011998,2]
[350556734,1737961841374,-500.0,0.00011998,2]
[350556736,1737961841384,-500.0,0.00011998,2]
[350556738,1737961841393,-500.0,0.00011998,2]
[350556740,1737961841403,-500.0,0.00011998,2]
[350556742,1737961841412,-526.32024082,0.00011998,2]
[350556744,1737961841422,-509.73232581,0.00011998,2]
[350556746,1737961841431,-500.0,0.00011998,2]
[350556748,1737961841442,-500.0,0.00011998,2]
[350556750,1737961841451,-494.0,0.00011998,2]
[350556752,1737961841460,-500.0,0.00011998,2]
[350556754,1737961841470,-314.26772388,0.00011998,2]
[350556756,1737961841479,-500.0,0.00011998,2]
[350556758,1737961841488,-500.0,0.00011998,2]
[350556760,1737961841498,-500.0,0.00011998,2]
[350556762,1737961841507,-500.0,0.00011998,2]
[350556764,1737961841517,-500.0,0.00011998,2]
[350556766,1737961841527,-500.0,0.00011998,2]
[350556768,1737961841537,-500.0,0.00011998,2]
[350556769,1737961841550,-500.0,0.00011998,2]
[350556789,1737961841735,-448.38849519,0.00011998,2]
[350556790,1737961841746,-500.0,0.00011998,2]
[350556791,1737961841755,-500.0,0.00011998,2]
[350556792,1737961841764,-438.72967266,0.00011998,2]
[350556793,1737961841773,-500.0,0.00011998,2]
[350556794,1737961841783,-500.0,0.00011998,2]
[350556795,1737961841793,-182.72945561,0.00011998,2]
[350556796,1737961841803,-500.0,0.00011998,2]
[350556797,1737961841813,-500.0,0.00011998,2]
[350556798,1737961841823,-500.0,0.00011998,2]
[350556799,1737961841833,-500.0,0.00011998,2]
[350556800,1737961841842,-500.0,0.00011998,2]
[350556801,1737961841852,-500.0,0.00011998,2]
[350556802,1737961841862,-500.0,0.00011998,2]
[350556803,1737961841872,-500.0,0.00011998,2]
[350556804,1737961841882,-500.0,0.00011998,2]
[350556805,1737961841891,-500.0,0.00011998,2]
[350556806,1737961841900,-500.0,0.00011998,2]
[350556807,1737961841910,-500.0,0.00011998,2]
[350556808,1737961841919,-269.3096294,0.00011998,2]
[350556809,1737961841928,-500.0,0.00011998,2]
[350556810,1737961841937,-500.0,0.00011998,2]
[350556811,1737961841949,-391.20433757,0.00011998,2]
[350556812,1737961841959,-500.0,0.00011998,2]
[350556813,1737961841968,-214.63576828,0.00011998,2]
[350556814,1737961841977,-500.0,0.00011998,2]
[350556815,1737961841986,-500.0,0.00011998,2]
[350556817,1737961841995,-500.0,0.00011998,2]
[350556819,1737961842005,-500.0,0.00011998,2]
[350556821,1737961842014,-500.0,0.00011998,2]
[350556823,1737961842024,-642.0,0.00011998,2]
[350556825,1737961842033,-300.06686486,0.00011998,2]
[350556827,1737961842043,-500.0,0.00011998,2]
[350556829,1737961842052,-500.0,0.00011998,2]
[350556831,1737961842061,-387.96,0.00011998,2]
[350556833,1737961842071,-500.0,0.00011998,2]
[350556835,1737961842082,-322.94923394,0.00011998,2]
[350556837,1737961842092,-612.61579036,0.00011998,2]
[350556839,1737961842101,-399.14,0.00011998,2]
[350556841,1737961842110,-500.0,0.00011998,2]
[350556843,1737961842120,-547.56550933,0.00011998,2]
[350556845,1737961842128,-500.0,0.00011998,2]
[350556846,1737961842138,-500.0,0.00011998,2]
[350556847,1737961842148,-470.07471282,0.00011998,2]
[350556848,1737961842157,-500.0,0.00011998,2]
[350556849,1737961842167,-154.72751,0.00011998,2]
[350556851,1737961842176,-1183.69,0.00011998,2]
[350556852,1737961842186,-500.0,0.00011998,2]
[350556854,1737961842195,-500.0,0.00011998,2]
[350556856,1737961842205,-500.0,0.00011998,2]
[350556858,1737961842214,-500.0,0.00011998,2]
[350556860,1737961842224,-266.973008,0.00011998,2]
[350556862,1737961842233,-500.0,0.00011998,2]
[350556864,1737961842243,-500.0,0.00011998,2]
[350556866,1737961842252,-156.805588,0.00011998,2]
[350556868,1737961842261,-500.0,0.00011998,2]
[350556870,1737961842270,-500.0,0.00011998,2]
[350556872,1737961842280,-500.0,0.00011998,2]
[350556874,1737961842289,-500.0,0.00011998,2]
[350556876,1737961842299,-500.0,0.00011998,2]
[350556878,1737961842308,-151.41859476,0.00011998,2]
[350556880,1737961842317,-565.74,0.00011998,2]
[350556882,1737961842327,-500.0,0.00011998,2]
[350556884,1737961842338,-500.0,0.00011998,2]
[350556886,1737961842348,-500.0,0.00011998,2]
[350556888,1737961842357,-500.0,0.00011998,2]
[350556890,1737961842367,-500.0,0.00011998,2]
[350556892,1737961842376,-500.0,0.00011998,2]
[350556894,1737961842386,-500.0,0.00011998,2]
[350556896,1737961842395,-500.0,0.00011998,2]
[350556898,1737961842405,-500.0,0.00011998,2]
[350556900,1737961842415,-500.0,0.00011998,2]
[350556902,1737961842423,-500.0,0.00011998,2]
[350556904,1737961842432,-500.0,0.00011998,2]
[350556906,1737961842441,-500.0,0.00011998,2]
[350556908,1737961842451,-502.00764449,0.00011998,2]
[350556910,1737961842460,-500.0,0.00011998,2]
[350556912,1737961842470,-500.0,0.00011998,2]
[350556914,1737961842479,-500.0,0.00011998,2]
[350556916,1737961842489,-1053.10477252,0.00011998,3]
[350556918,1737961842499,-500.0,0.00011998,2]
[350556920,1737961842509,-604.35859778,0.00011998,2]
[350556922,1737961842518,-500.0,0.00011998,2]
[350556924,1737961842531,-530.79093237,0.00011998,2]
[350556926,1737961842540,-500.0,0.00011998,2]
[350556928,1737961842549,-500.0,0.00011998,2]
[350556930,1737961842559,-500.0,0.00011998,2]
[350556932,1737961842569,-500.0,0.00011998,2]
[350556933,1737961842578,-500.0,0.00011998,2]
[350556935,1737961842589,-500.0,0.00011998,2]
[350556938,1737961842599,-500.0,0.00011998,2]
[350556939,1737961842608,-500.0,0.00011998,2]
[350556941,1737961842619,-500.0,0.00011998,2]
[350556943,1737961842628,-500.0,0.00011998,2]
[350556945,1737961842637,-500.0,0.00011998,2]
[350556947,1737961842647,-500.0,0.00011998,2]
[350556949,1737961842656,-859.49,0.00011998,2]
[350556951,1737961842666,-859.49,0.00011998,2]
[350556953,1737961842674,-500.0,0.00011998,2]
[350556954,1737961842683,-500.0,0.00011998,2]
[350556955,1737961842693,-348.5785266,0.00011998,2]
[350556956,1737961842703,-500.0,0.00011998,2]
[350556957,1737961842712,-500.0,0.00011998,2]
[350556958,1737961842721,-500.0,0.00011998,2]
[350556959,1737961842731,-500.0,0.00011998,2]
[350556960,1737961842741,-866.33,0.00011998,2]
[350556961,1737961842751,-866.33,0.00011998,2]
[350556962,1737961842760,-500.0,0.00011998,2]
[350556963,1737961842769,-500.0,0.00011998,2]
[350556964,1737961842778,-585.63,0.00011998,2]
[350556966,1737961842787,-585.63,0.00011998,2]
[350556968,1737961842797,-500.0,0.00011998,2]
[350556970,1737961842806,-500.0,0.00011998,2]
[350556972,1737961842815,-537.03934018,0.00011998,2]
[350556974,1737961842825,-500.0,0.00011998,2]
[350556976,1737961842836,-655.74,0.00011998,2]
[350556978,1737961842845,-655.74,0.00011998,2]
[350556980,1737961842855,-500.0,0.00011998,2]
[350556982,1737961842866,-500.0,0.00011998,2]
[350556984,1737961842876,-500.0,0.00011998,2]
[350556986,1737961842886,-500.0,0.00011998,2]
[350556988,1737961842895,-698.29,0.00011998,2]
[350556990,1737961842904,-500.0,0.00011998,2]
[350556992,1737961842914,-698.29,0.00011998,2]
[350556994,1737961842923,-500.0,0.00011998,2]
[350556996,1737961842932,-500.0,0.00011998,2]
[350556998,1737961842942,-359.62994781,0.00011998,2]
[350557000,1737961842951,-500.0,0.00011998,2]
[350557002,1737961842961,-1074.83,0.00011998,2]
[350557004,1737961842970,-1074.83,0.00011998,2]
[350557006,1737961842979,-500.0,0.00011998,2]
[350557008,1737961842989,-1053.10477253,0.00011998,3]
[350557010,1737961842999,-306.47182331,0.00011998,2]
[350557012,1737961843009,-500.0,0.00011998,2]
[350557014,1737961843018,-500.0,0.00011998,2]
[350557016,1737961843027,-165.88350475,0.00011998,2]
[350557018,1737961843036,-500.0,0.00011998,2]
[350557020,1737961843046,-500.0,0.00011998,2]
[350557022,1737961843056,-500.0,0.00011998,2]
[350557024,1737961843065,-500.0,0.00011998,2]
[350557026,1737961843075,-500.0,0.00011998,2]
[350557028,1737961843086,-500.0,0.00011998,2]
[350557030,1737961843096,-608.15575848,0.00011998,2]
[350557032,1737961843105,-500.0,0.00011998,2]
[350557034,1737961843115,-500.0,0.00011998,2]
[350557036,1737961843125,-500.0,0.00011998,2]
[350557038,1737961843135,-220.03520824,0.00011998,2]
[350557040,1737961843144,-501.69113918,0.00011998,2]
[350557042,1737961843154,-500.0,0.00011998,2]
[350557044,1737961843163,-500.0,0.00011998,2]